Cogmind - Beta 13 @@@ ROGUE MODE // 2024.07.19 @ 20:11:49 Player: Wabbajack Result: Core destroyed Performance ------------- Evolutions (3) 1500 Regions Visited (6) 1200 Robots Destroyed (60) 300 Value Destroyed (2174) 2174 Prototype IDs (8) 160 Alien Tech Used (0) 0 Bonus (89) 89 TOTAL SCORE: 5423 Bonus ------- High Alert Combat Kills 89 Cogmind --------- Core Integrity 0/700 Matter 64/300 Energy 100/100 System Corruption 38% Temperature Cool (0) Movement Core (200) Ox3 Location -7/Factory Parts ------- > --- POWER (1) -------- (None) > --- PROPULSION (4) --- (None) > --- UTILITY (5) ------ Medium Storage Unit Improved Targeting Computer > --- WEAPON (3) ------- (None) > --- INVENTORY (10) --- Precision Assault Rifle Assault Cannon Assault Cannon Spear Peak State ------------ > --- POWER ------------ Cooled Deuterium Engine > --- PROPULSION ------- Carbon-fiber Leg Carbon-fiber Leg VSS Leg Improved Carbon-fiber Leg > --- UTILITY ---------- Medium Storage Unit Small Matter Pod Improved Targeting Computer Kinecellerator Improved Medium Armor Plating > --- WEAPON ----------- Precision Assault Rifle Precision Assault Rifle Precision Assault Rifle > --- INVENTORY -------- Improved Deuterium Engine Weapon Cycler Hardened Medium Armor Plating Gauss Rifle Precision Assault Rifle Precision Assault Rifle Precision Assault Rifle Assault Cannon Assault Cannon Spear [Rating: 49] Favorites ----------- Power Light Nuclear Core Engine Cooled Deuterium Engine Power Core Light Nuclear Core Propulsion Aluminum Leg Treads Armored Treads Leg Aluminum Leg Wheel Armored Huge Wheel Utility Improved Targeting Computer Device Improved Heat Sink Storage Large Storage Unit Processor Improved Targeting Computer Protection Medium Reactive Plating Weapon Heavy Assault Rifle Energy Gun High-powered Field Laser Energy Cannon Particle Cannon Ballistic Gun Heavy Assault Rifle Ballistic Cannon Flak Cannon Piercing Weapon Spear Build | -11 -10 -9 -8 -7 -7 -7 ------- Run | Yrd Mat Mat Mat Fac Was Fac Slots Evolved 6 | . . 2 2 2 . . Power . | . . . . . . . Propulsion 2 | . . 1 . 1 . . Utility 3 | . . 1 1 1 . . Weapon 1 | . . . 1 . . . Parts Attached 92 | 6 3 7 31 14 4 27 Power 13 | 1 1 2 2 3 . 4 Engine 7 | 1 . 1 . 1 . 4 Core 6 | . 1 1 2 2 . . Reactor . | . . . . . . . Propulsion 22 | 2 . 1 12 1 . 6 Treads 5 | . . . 4 1 . . Leg 16 | 2 . 1 8 . . 5 Wheel 1 | . . . . . . 1 Hover . | . . . . . . . Flight . | . . . . . . . Utility 27 | 1 1 2 6 4 4 9 Device 13 | . . . 3 3 3 4 Storage 7 | 1 . 1 2 . 1 2 Processor 2 | . 1 . 1 . . . Hackware . | . . . . . . . Protection 5 | . . 1 . 1 . 3 Artifact . | . . . . . . . Weapon 30 | 2 1 2 11 6 . 8 Energy Gun 4 | . . . 2 2 . . Energy Cannon 5 | . . . 3 2 . . Ballistic Gun 18 | 2 1 2 5 2 . 6 Ballistic Cannon 2 | . . . 1 . . 1 Launcher . | . . . . . . . Special Weapon . | . . . . . . . Impact Weapon . | . . . . . . . Slashing Weapon . | . . . . . . . Piercing Weapon 1 | . . . . . . 1 Special Melee Weapon . | . . . . . . . Unidentified Prototypes 6 | . . 1 2 2 . 1 Parts Lost 33 | . . . 12 2 5 14 Power 4 | . . . 1 1 . 2 Propulsion 11 | . . . 6 1 1 3 Utility 7 | . . . 2 . 1 4 Weapon 11 | . . . 3 . 3 5 Highest Loss Streak 14 | . . . 3 1 4 14 To Critical Strikes 1 | . . . . . 1 . Average Slot Usage (%) 85 | . 88 99 92 79 45 80 Engine 1 | . 4 . . . . 6 Core 6 | . 9 10 8 5 3 . Treads 6 | . . . 9 12 3 . Leg 12 | . 28 33 11 . . 20 Device 10 | . . . 11 16 13 8 Storage 10 | . 14 11 13 7 3 10 Processor 7 | . 3 11 9 7 7 7 Protection 3 | . . 10 . 5 2 3 Energy Gun 3 | . . . 5 5 3 . Energy Cannon 1 | . . . 4 1 . . Ballistic Gun 15 | . 28 22 12 15 6 19 Ballistic Cannon 2 | . . . 5 . . . Naked Turns . | . . . . . . . Heaviest Build 58 | 13 15 22 38 58 58 46 Greatest Support 60 | 20 20 30 60 51 31 60 Greatest Overweight (x) 12 | 3 . . 2 2 8 12 Average Overweight (x) . | . . . . 1 . . Largest Inventory Capacity 15 | 8 8 10 15 15 15 10 Average Capacity 11 | 7 8 8 12 15 10 9 Most Carried 15 | . 7 10 12 15 15 10 Average Carried 9 | . 3 8 9 13 8 6 Final Capacity 15 | 8 8 10 15 15 5 10 Final Carried 15 | . 7 10 9 15 3 4 Class Distribution -------------------- 46% | Gunner 22% | Mutant 20% | Tank 10% | Scavenger-Gunner Dominant Class ---------------- Mutant | -10/Materials Mutant | -9/Materials Gunner | -8/Materials Tank | -7/Factory Mutant | -7/Waste Gunner | -7/Factory Resources | -11 -10 -9 -8 -7 -7 -7 ----------- Run | Yrd Mat Mat Mat Fac Was Fac Matter Collected 2003 | 220 74 136 1098 290 . 185 Remotely . | . . . . . . . Salvage Created 2591 | . 96 136 1884 298 . 177 Parts 128 | . 6 11 82 18 . 11 Haulers Intercepted 2 | . . . 2 . . . Recyclers Shooed 1 | . . 1 . . . . Parts Field Recycled . | . . . . . . . Retrieved Matter . | . . . . . . . Parts Self-Destructed . | . . . . . . . Prevented . | . . . . . . . Kills | -11 -10 -9 -8 -7 -7 -7 ------- Run | Yrd Mat Mat Mat Fac Was Fac Combat Hostiles Destroyed 48 | . 2 5 33 5 . 3 Guns 33 | . 2 5 18 5 . 3 Cannons 14 | . . . 14 . . . AOE 1 | . . . 1 . . . Classes Destroyed 12 | . 1 2 7 2 . . Worker 2 | . . . . 1 . 1 Builder 3 | . . . 3 . . . Tunneler 1 | . . . 1 . . . Hauler 2 | . . . 2 . . . Recycler 4 | . . 1 3 . . . Swarmer 6 | . . 4 2 . . . Grunt 28 | . 2 1 22 2 . 1 Brawler 1 | . . . 1 . . . Sentry 8 | . . . 6 1 . 1 Specialist 1 | . . . 1 . . . Hunter 2 | . . . 1 . . 1 Programmer 2 | . . . . 2 . . Best Kill Streak 5 | . 2 5 4 1 . 1 Combat Bots Only 4 | . 2 4 3 1 . 1 Max Kills in Single Turn 2 | . 1 1 2 1 . 1 Gunslinging . | . . . . . . . Exploded 1 | . . . 1 . . . Melee . | . . . . . . . Uniques/NPCs Destroyed . | . . . . . . . Combat | -11 -10 -9 -8 -7 -7 -7 -------- Run | Yrd Mat Mat Mat Fac Was Fac Hostile Shots Fired 674 | . 11 30 226 58 4 345 Missed 218 | . 4 12 62 20 . 120 Damage Taken 6400 | . 123 146 2516 593 175 2847 Core 1150 | . 26 25 395 79 93 532 Absorbed by Shields . | . . . . . . . Redirected to Shielding 50 | . . 5 45 . . . Core Remaining (%) 77 | 100 89 93 28 . . . Volleys Fired 155 | . 8 12 101 24 1 9 Largest 3 | . 2 2 3 3 1 3 Hottest 136 | . 40 46 136 126 70 84 Shots Fired 423 | . 16 24 297 57 1 28 Gun 324 | . 16 24 198 57 1 28 Cannon 99 | . . . 99 . . . Launcher . | . . . . . . . Special . | . . . . . . . Kinetic 312 | . 16 24 196 48 . 28 Thermal 105 | . . . 95 9 1 . Explosive . | . . . . . . . Electromagnetic 6 | . . . 6 . . . Robot Hit Streak 20 | . 5 5 15 20 11 8 Robot Miss Streak 6 | . 2 3 6 1 . 1 Penetration Max . | . . . . . . . Secondary Targets 1 | . . . . 1 . . Max Gunslinging Chain 1 | . . . . 1 . . Shots Hit Robots 295 | . 10 12 208 43 1 21 Core Hits 145 | . 5 6 113 13 . 8 Critical Kills . | . . . . . . . Critical Parts Destroyed . | . . . . . . . Critical Strikes 3 | . . . 3 . . . Burn 3 | . . . 3 . . . Melee Attacks . | . . . . . . . Impact . | . . . . . . . Slashing . | . . . . . . . Piercing . | . . . . . . . Sneak Attacks . | . . . . . . . Combat Hostiles . | . . . . . . . Follow-up Attacks . | . . . . . . . Damage Inflicted 5461 | . 100 202 3765 932 23 439 Guns 3769 | . 100 202 2136 932 23 376 Cannons 1490 | . . . 1490 . . . Explosions 57 | . . . 57 . . . Melee . | . . . . . . . Ramming 145 | . . . 82 . . 63 Kinetic 3565 | . 100 202 2117 770 . 376 Thermal 1673 | . . . 1488 162 23 . Explosive . | . . . . . . . Electromagnetic 78 | . . . 78 . . . Impact . | . . . . . . . Slashing . | . . . . . . . Piercing . | . . . . . . . Highest Corruption 38 | . . . . . 26 38 Average Corruption 24 | . . . . . 13 26 Corruption Purged . | . . . . . . . Corruption Blocked . | . . . . . . . Effects 71 | . . . . . 8 63 Message Errors 9 | . . . . . 1 8 Matter Fused 11 | . . . . . 3 8 Heat Flow Errors 8 | . . . . . . 8 Energy Discharges 12 | . . . . . 1 11 Parts Rejected 2 | . . . . . . 2 Parts Fused 3 | . . . . . 1 2 Data Loss (minor) 10 | . . . . . 2 8 Data Loss (major) 3 | . . . . . . 3 Misfires 4 | . . . . . . 4 Alerts 1 | . . . . . . 1 Misdirections 8 | . . . . . . 8 Overload Shots . | . . . . . . . Overflow Damage . | . . . . . . . Projectiles . | . . . . . . . Explosions . | . . . . . . . Melee . | . . . . . . . Knockbacks 21 | . . . 20 . . 1 Impact 1 | . . . . . . 1 Kinetic 19 | . . . 19 . . . Secondary 1 | . . . 1 . . . Self-Inflicted Damage 174 | . . . . 174 . . Shots 2 | . . . . 2 . . Rammed 6 | . . . 5 . . 1 Targets Rammed 25 | . . 1 16 . . 8 Kicked 18 | . . 1 10 . . 7 Crushed 1 | . . . 1 . . . Highest Temperature 348 | . 9 348 97 189 2 265 Average Temperature 51 | . 6 170 23 76 1 101 Received Heat Transfer 2088 | . 57 . 1251 99 . 681 Siege Activations . | . . . . . . . Robots Corrupted . | . . . . . . . Combat Hostiles . | . . . . . . . Parts Fried . | . . . . . . . Impact Corruptions . | . . . . . . . Robots Melted . | . . . . . . . Combat Hostiles . | . . . . . . . Parts Melted . | . . . . . . . Heat Transferred 3330 | . . . 3034 259 37 . Parts Sabotaged . | . . . . . . . Parts Stolen . | . . . . . . . Parts Stripped . | . . . . . . . Power Chain Reactions 1 | . . . 1 . . . Alert | -11 -10 -9 -8 -7 -7 -7 ------- Run | Yrd Mat Mat Mat Fac Was Fac Peak Influence 532 | . 80 131 532 219 21 80 Initial 173 | . . . 13 173 16 . Average 129 | . 38 22 279 76 7 23 Maximum Alert Level 2 | . . . 2 1 . . Low Security (%) 69 | 100 100 100 21 91 100 100 Level 1 22 | . . . 55 8 . . Level 2 8 | . . . 22 . . . Level 3 . | . . . . . . . Level 4 . | . . . . . . . Level 5 . | . . . . . . . High Security . | . . . . . . . Max Security . | . . . . . . . Squads Dispatched 17 | . . 1 10 2 . 4 Investigation 1 | . . . 1 . . . Extermination 4 | . . . . 2 . 2 Reinforcement 6 | . . 1 3 . . 2 Assault . | . . . . . . . Garrison 6 | . . . 6 . . . Intercept . | . . . . . . . Searches Triggered . | . . . . . . . Construction Impeded . | . . . . . . . Haulers Reinforced . | . . . . . . . Active Scanning Responses . | . . . . . . . Cargo Convoy Interrupts . | . . . . . . . Stealth | -11 -10 -9 -8 -7 -7 -7 --------- Run | Yrd Mat Mat Mat Fac Was Fac Distress Signals 7 | . . . 5 2 . . Communications Jammed . | . . . . . . . Distress Signals . | . . . . . . . Times Spotted 99 | . 4 7 61 8 6 13 Peak Tracking Total 7 | . 3 4 6 3 6 7 Tactical Retreats 6 | . . . 5 1 . . Traps | -11 -10 -9 -8 -7 -7 -7 ------- Run | Yrd Mat Mat Mat Fac Was Fac Traps Triggered 4 | . 1 . 1 1 . 1 Indirectly . | . . . . . . . Trap Hack Attempts . | . . . . . . . Triggered . | . . . . . . . Disarmed . | . . . . . . . Reprogrammed . | . . . . . . . Reused . | . . . . . . . Traps Extracted . | . . . . . . . Installed . | . . . . . . . Triggered . | . . . . . . . Machines | -11 -10 -9 -8 -7 -7 -7 ---------- Run | Yrd Mat Mat Mat Fac Was Fac Machines Disabled 6 | . . 1 3 2 . . Max in Single Turn 2 | . . 1 1 2 . . Machines Repaired . | . . . . . . . Machines Dismantled . | . . . . . . . Machines Sabotaged . | . . . . . . . Overloaded Fab Kills . | . . . . . . . Hacking | -11 -10 -9 -8 -7 -7 -7 --------- Run | Yrd Mat Mat Mat Fac Was Fac Machines Accessed 10 | . 4 1 2 1 . 2 Terminals 9 | . 4 1 2 . . 2 Fabricators . | . . . . . . . Repair Stations . | . . . . . . . Recycling Units . | . . . . . . . Scanalyzers 1 | . . . . 1 . . Garrison Access . | . . . . . . . Total Hacks 17 | . 6 3 5 1 . 2 Successful 6 | . 1 2 2 . . 1 Failed 11 | . 5 1 3 1 . 1 Catastrophic 4 | . 2 . 1 . . 1 Database Lockouts . | . . . . . . . Manual 11 | . 4 1 4 . . 2 Terminals 16 | . 6 3 5 . . 2 Fabricators . | . . . . . . . Repair Stations . | . . . . . . . Recycling Units . | . . . . . . . Scanalyzers 1 | . . . . 1 . . Garrison Access . | . . . . . . . Terminal Hacks 6 | . 1 2 2 . . 1 Prototype ID Bank 1 | . . 1 . . . . Open DSF 1 | . . . . . . 1 Alert Level 1 | . . 1 . . . . Unreport Threat 2 | . 1 . 1 . . . Reinforcement Status 1 | . . . 1 . . . Fabricator Hacks . | . . . . . . . Repair Station Hacks . | . . . . . . . Recycling Unit Hacks . | . . . . . . . Scanalyzer . | . . . . . . . Garrison Access Hacks . | . . . . . . . Unauthorized Hacks . | . . . . . . . Terminals . | . . . . . . . Fabricators . | . . . . . . . Repair Stations . | . . . . . . . Recycling Units . | . . . . . . . Scanalyzers . | . . . . . . . Garrison Access . | . . . . . . . Data Cores Recovered . | . . . . . . . Used . | . . . . . . . Hacking Detections 6 | . 3 1 1 1 . . Full Trace Events 1 | . . 1 . . . . Feedback Events . | . . . . . . . Feedback Blocked . | . . . . . . . Robot Schematics Acquired . | . . . . . . . Robots Built . | . . . . . . . Authchips . | . . . . . . . Time . | . . . . . . . Total Robot Build Rating . | . . . . . . . Part Schematics Acquired . | . . . . . . . Parts Built . | . . . . . . . Authchips . | . . . . . . . Time . | . . . . . . . Total Part Build Rating . | . . . . . . . Parts Repaired . | . . . . . . . Time . | . . . . . . . Parts Recycled . | . . . . . . . Recycled Matter . | . . . . . . . Retrieved Matter . | . . . . . . . Retrieved Components . | . . . . . . . Parts Scanalyzed . | . . . . . . . Part Schematics Acquired . | . . . . . . . Parts Damaged . | . . . . . . . Bothacking | -11 -10 -9 -8 -7 -7 -7 ------------ Run | Yrd Mat Mat Mat Fac Was Fac Used RIF Installer . | . . . . . . . Robots Hacked . | . . . . . . . Non-combat . | . . . . . . . Combat . | . . . . . . . Robot Hacks Applied . | . . . . . . . Relay Couplers Released . | . . . . . . . Fabnet Peak Effective % . | . . . . . . . Robots Rewired . | . . . . . . . Allies Hacked . | . . . . . . . Hacks Repelled . | . . . . . . . Allies | -11 -10 -9 -8 -7 -7 -7 -------- Run | Yrd Mat Mat Mat Fac Was Fac Total Allies . | . . . . . . . Largest Group . | . . . . . . . Highest-Rated Group . | . . . . . . . Highest-Rated Ally . | . . . . . . . Total Orders . | . . . . . . . Ally Attacks . | . . . . . . . Total Damage . | . . . . . . . Kills . | . . . . . . . Allies Corrupted . | . . . . . . . Allies Melted . | . . . . . . . Intel | -11 -10 -9 -8 -7 -7 -7 ------- Run | Yrd Mat Mat Mat Fac Was Fac Robot Analysis Total . | . . . . . . . Derelict Logs Recovered . | . . . . . . . Drone Launches . | . . . . . . . Drone Recoveries . | . . . . . . . Exploration | -11 -10 -9 -8 -7 -7 -7 ------------- Run | Yrd Mat Mat Mat Fac Was Fac Turns Passed 5369 | 53 278 430 1944 1322 216 1126 Spaces Moved 2882 | 34 194 292 833 482 226 821 Core 263 | 9 . . . . 183 71 Treads 970 | . . . 445 482 43 . Legs 1617 | 25 194 292 388 . . 718 Wheels 32 | . . . . . . 32 Hover . | . . . . . . . Flight . | . . . . . . . Fastest Speed 50 | 50 120 120 120 237 50 100 Average Speed 155 | 132 120 120 173 246 92 123 Slowest Speed 650 | 200 120 120 260 330 450 650 Overloaded Moves . | . . . . . . . Propulsion Burnouts . | . . . . . . . Robots Hopped . | . . . . . . . Cave-ins Triggered . | . . . . . . . Exploration Rate (%) 33 | 4 26 20 64 11 87 23 Regions Visited 6 Branch Regions . Pre-discovered Areas . | . . . . . . . Known Exits Taken . | . . . . . . . Unknown Exits Taken 4 | 1 1 1 1 . . . Scrap Searched . | . . . . . . . Spaces Dug . | . . . . . . . Terrain Destroyed 7 | . . . 7 . . . Melee . | . . . . . . . Projectile . | . . . . . . . AOE 7 | . . . 7 . . . Terrain Rammed . | . . . . . . . Walls Destroyed . | . . . . . . . Machines Disabled . | . . . . . . . Actions | -11 -10 -9 -8 -7 -7 -7 --------- Run | Yrd Mat Mat Mat Fac Was Fac Total 3420 | 39 223 349 1096 570 231 912 Wait 181 | . 14 23 96 23 . 25 Move 2877 | 33 193 291 832 482 225 821 Hop . | . . . . . . . Pick Up 47 | . 5 8 9 13 1 11 Fast Attach 34 | 6 1 2 6 6 1 12 Attach 23 | . . 2 8 . 3 10 Detach 5 | . . . . 1 . 4 Swap 35 | . 2 3 17 8 . 5 Drop 39 | . . 7 11 13 . 8 Fire 155 | . 8 12 101 24 1 9 Melee . | . . . . . . . Ram . | . . . . . . . Kick 18 | . . 1 10 . . 7 Crush 6 | . . . 6 . . . Escape Stasis . | . . . . . . . Rewire . | . . . . . . . Trap . | . . . . . . . Miscellaneous . | . . . . . . . Route ------- -11/Scrapyard -10/Materials -9/Materials -8/Materials -7/Factory -7/Waste -7/Factory (discovered 2 exits: [*Fac] / [*Low]) History --------- Turn | Location | Event 17 | -11/Scrapyard | Discovered new exit (range 15) 54 | -11/Scrapyard | Entered Materials 233 | -10/Materials | Discovered new exit (range 16) 318 | -10/Materials | Build established: Mutant 332 | -10/Materials | Entered another Materials area 332 | -9/Materials | Evolved 2 slots: Propulsion x1, Utility x1 607 | -9/Materials | Discovered new exit (range 16) 762 | -9/Materials | Entered another Materials area 762 | -8/Materials | Evolved 2 slots: Utility x1, Weapon x1 958 | -8/Materials | Lost 3 parts (2n1u) 1055 | -8/Materials | Build established: Gunner 1357 | -8/Materials | Garrison activated, responded to threat 2102 | -8/Materials | Build established: Scavenger-Gunner 2222 | -8/Materials | Garrison activated, responded to threat 2282 | -8/Materials | Core integrity fell below 50% 2486 | -8/Materials | Build established: Gunner 2650 | -8/Materials | Lost 3 parts (3w) 2658 | -8/Materials | Discovered new exit (range 13) 2706 | -8/Materials | Entered Factory 2706 | -7/Factory | Evolved 2 slots: Propulsion x1, Utility x1 3331 | -7/Factory | Build established: Tank 3998 | -7/Factory | Discovered new exit (range 15) 4028 | -7/Factory | Sucked down chute 4028 | -7/Factory | Entered Waste 4043 | -7/Waste | EMP discharged 4068 | -7/Waste | Spotted C-40 Crusher 4077 | -7/Waste | Spotted C-40 Crusher 4093 | -7/Waste | Spotted C-40 Crusher 4114 | -7/Waste | Crushed by Compactor (1 part destroyed, 2 dropped) 4125 | -7/Waste | Crushed by Compactor (1 part destroyed, 1 dropped) 4130 | -7/Waste | Crushed by Compactor (1 part destroyed, 2 dropped) 4143 | -7/Waste | EMP discharged 4143 | -7/Waste | System corruption reached 10% 4161 | -7/Waste | Lost 4 parts (1n3w) 4172 | -7/Waste | Crushed by Compactor (1 part destroyed, 2 dropped) 4174 | -7/Waste | Spotted C-40 Crusher 4177 | -7/Waste | Spotted C-40 Crusher 4212 | -7/Waste | Spotted C-40 Crusher 4235 | -7/Waste | Discovered new exit (range 14) 4243 | -7/Waste | EMP discharged 4244 | -7/Waste | Entered Factory 4427 | -7/Factory | Build established: Mutant 4433 | -7/Factory | Discovered new exit (range 5) 4735 | -7/Factory | Build established: Gunner 4833 | -7/Factory | Discovered new exit (range 9) 5259 | -7/Factory | System corruption reached 30% 5310 | -7/Factory | Core integrity fell below 50% 5362 | -7/Factory | Core integrity fell below 20% 5370 | -7/Factory | Core destroyed Last Messages --------------- 05344_ K-01 Serf collects debris. 05346_ Hrd. Medium Armor Plating destroyed. 05346_ K-01 Serf cleans the Assembly Bed. 05347_ Critical hit (Burn: +37). 05348_ System corrupted: FCS attempts to trigger Prc. Assault Rifle. 05348_ System corrupted: Prc. Assault Rifle misfires. 05348_ G-47 Trooper destroyed. 05352_ K-01 Serf collects debris. 05353_ Imp. Deuterium Engine destroyed. 05354_ Acquired 38 matter. 05355_ Prc. Assault Rifle destroyed. 05355_ Weapon Cycler destroyed. 05356_ K-01 Serf collects debris. 05358_ Prc. Assault Rifle destroyed. 05359_ K-01 Serf destroyed. 05367_ System corrupted: Gauss Rifle rejected. 05370_ Slammed into P-60 Hacker. 05370_ Destabilizing: Core damaged (-7). Map ----- +----------------------------------------------------+ | ?????????????????????????????????????????????????? | | ?????????????????????????????????????????????????? | | ?????????????????????????????????????????????????? | | ?????????????????????????????????????????????????? | | ?????????????????????????????????????????????????? | | ?????????????????????????????????????????????????? | | ?????????????????????????????????????????????????? | | ?????????????????????????????????????????????????? | | ?????????????????????????????????????????????????? | | ?????????????????????????????????????????????????? | | ???????????????????????? ????????????????????????? | | ???????????????????????? ????????????????????????? | | ???????????????????????? ????????????????????????? | | ??????????? ##????##/????????????????????????? | | ??????????# # ????! ???????????????????????? | | ??????????# # ?? ???????????????????????? | | ??????????+ # ?? * ???????????????????????? | | ??????????# # ?? ???????????????????????? | | ??????????# # """" """"?#???????????????????? | | ??????????# # """" """" #???????????????????? | | ??????????# # """" """"w#???????????????????? | | ????????### # """" """" #???????????????????? | | ????????? # """"k"""" #???????????????????? | | ??????????# # """" """" #???????????????????? | | ???######## # gu= p #???????????????????? | | ??? # # [g! [@pY #???????????????????? | | ???""""" # ###+#######/##???????????????????? | | ???""""" # ^ ^ #?????????????????????????? | | ???""""" # #?????????????????????????? | | """"""" # ""% """ #?????????????????????????? | | + %""" """ #?????????????????????????? | | """"""" # %" """ #?????????????????????????? | | """"""" # "" """ #?????????????????????????? | | ???""""" # #?????????????????????????? | | ????"""" # #?????????????????????????? | | ???? # / +?????????????????????????? | | ??? # "" "" #?????????????????????????? | | ???######## "F "" #?????????????????????????? | | ########### """"" #?????????????????????????? | | # #######??????????????????????????? | | # #????????????????????????????????? | | # #????????????????????????????????? | | # #????????????????????????????????? | | # #????????????????????????????????? | | + #????????????????????????????????? | | # #????????????????????????????????? | | # #????????????????????????????????? | | # #????????????????????????????????? | | ########### #????????????????????????????????? | | # #????????????????????????????????? | +----------------------------------------------------+ Best States ------------- Heat Dissipation 53 Energy Generation 18 Energy Capacity 310 Matter Stores 450 Matter Capacity 450 Sight Range 16 Terrain Scan Density 10 Additional Mass Support 9 Armor Coverage 225 Resistance: KI 30 Weapon Shielding 33 Weapon Cycling 15 Evasion (%) 55 Targeting Accuracy 6 Recoil Reduction 7 Kinecelleration 30 Item Schematics ----------------- None Robot Schematics ------------------ None Fabricated ------------ Nothing Alien Tech Used ----------------- None Achievements -------------- None Challenges ------------ None Game ------ Seed TerrabombSurgeCannon Manual? 0 Play Time 00:53:49 Cumulative 24.4 hours Start 2024.07.19 @ 19:21:15 End 2024.07.19 @ 20:11:49 Sessions 1 Manual Loads 0 Difficulty Rogue Special Mode None Game No. 42 Rogue 41 Adventurer 1 Explorer 0 Win Type - Total 0 Types 0/0/0/0/0/0/0/0/0 Lore% 12 Gallery% 24 Achievement% 16 Wizard Run 0 Options --------- Layout 1 ASCII 0 Keyboard 1 Movement Numpad Keybinds 0 Fullscreen 1 Font 24/Smallcaps Map View 50x40 Zoom Use 0% Tactical HUD 1 Map Filters NONE Filters NONE Steam 1 RUN: 21322357-0427-46c5-9702-10c3577f9918